[Event "4NCL Div 2 2024-25"]
[Site "England"]
[Date "2025.01.25"]
[Round "3.21"]
[White "Eagleton, Greg T"]
[Black "Thompson, Ian D"]
[Result "0-1"]
[Annotator "TA"]
[ECO "D02"]
[WhiteElo "2053"]
[BlackElo "2010"]
[PlyCount "128"]
[EventDate "2024.11.23"]
[EventType "team-tourn"]
[EventCountry "ENG"]
[SourceTitle "playchess.com"]
[Source "ChessBase"]
[SourceQuality "1"]
[TimeControl "40/6000+30:3000+30"]

{[%evp 11,128,-5,7,-11,5,0,12,-6,11,-29,-17,-27,-16,-13,0,0,0,-48,-46,-34,-32,-38,24,-17,-24,-15,-3,-11,0,-38,-36,-36,-45,-126,-140,-344,-367,-355,-329,-436,-330,-423,-253,-254,-260,-234,-194,-193,-188,-191,-186,-158,-169,-347,-337,-548,-547,-522,-392,-417,-422,-403,-403,-371,-398,-436,-288,-388,-389,-241,-134,-139,-139,-129,-137,-128,-135,-166,-202,-198,-162,-154,-154,-162,-127,-258,-252,-446,-154,-772,-686,-620,-580,-1541,-1325,-920,-289,-269,0,-286,-286,-286,-286,-29972,-29975,-29964,-6809,-29976,-10829,-29976,-8984,-12459,-10653,-5608,-5422,-29981,-29982,-29989,-29990]} 1. d4 {[%emt 0:10:02]} d5 {[%emt 0:10:06]} 2. Nf3 {[%emt 0:00:06]} Nf6 {[%emt 0:00:12]} 3. g3 {[%emt 0:00:10]} c6 {[%emt 0:03:01]} 4. Bg2 {[%emt 0:00:38]} Bf5 {[%emt 0:01:07]} 5. Nbd2 {[%emt 0:01:13]} e6 {[%emt 0:02:46]} 6. O-O {[%emt 0:02:18]} Be7 {[%emt 0:00:56] is the legacy move (6...h6).} 7. c4 {[%emt 0:05:34] D02: 1 d4 d5 2 Nf3 sidelines, including 2...Nf6 3 g3 and 2...Nf6 3 Bf4.} Nbd7 {[%emt 0:10:21]} 8. Nh4 {[%emt 0:08:55]} Bg4 {[%emt 0:01:59]} 9. Re1 {[%emt 0:12:30] The position is equal.} Bh5 {[%emt 0:08:09]} 10. Nhf3 $146 {[%emt 0:02:05]} (10. Qb3 Rb8 11. Ndf3 dxc4 12. Qxc4 Nb6 13. Qb3 Nbd5 14. Ne5 Nd7 15. Nhf3 Nxe5 16. dxe5 {1-0 Johansson,P (2170)-Wicklund Hansen,R (2025) Troll Masters 1996 (3)}) 10... O-O {[%emt 0:01:48]} 11. a3 {[%emt 0:11:32]} h6 {[%emt 0:06:50]} 12. b3 {[%emt 0:08:58]} Bg6 {[%emt 0:12:39]} 13. Bb2 {[%emt 0:02:29]} Rc8 {[%emt 0:09:38]} 14. Ne5 {[%emt 0:02:30]} (14. e3 $11) 14... Nxe5 $1 $15 {[%emt 0:01:43]} 15. dxe5 {[%emt 0:00:06]} Nd7 {[%emt 0:01:44]} 16. Rc1 {[%emt 0:04:07]} f6 {[%emt 0:08:23]} (16... b5 $15) 17. exf6 {[%emt 0:05:34]} Bxf6 {[%emt 0:00:32]} 18. Bxf6 {[%emt 0:01:17]} Qxf6 {[%emt 0:06:05]} 19. Nf3 {[%emt 0:00:34]} Rce8 {[%emt 0:01:15]} 20. Rf1 {[%emt 0:05:13]} Qb2 {[%emt 0:03:39]} 21. Nh4 {[%emt 0:05:06]} Bh7 {[%emt 0:00:49][%cal Od7e5]} 22. cxd5 {[%emt 0:01:45]} (22. e4 $1 $15) 22... exd5 $17 {[%emt 0:00:10]} (22... Qxa3 $2 23. dxc6 Nc5 24. c7 $18 (24. cxb7 Rd8 $18)) 23. Bxd5+ $2 {[%emt 0:00:17]} (23. Bf3 $17) 23... cxd5 $19 {[%emt 0:00:44]} 24. Qxd5+ {[%emt 0:00:07]} Rf7 {[%emt 0:00:09]} 25. Rc7 {[%emt 0:02:01]} Ree7 {[%emt 0:00:25]} 26. Qxb7 {[%emt 0:04:45][%cal Oc7d7]} Be4 {[%emt 0:08:49]} (26... Qxe2 27. Rxd7 Rxd7 28. Qc8+ Rf8 29. Qxd7) (26... Qxa3 $2 27. b4 g5 28. Nf3 $19) (26... g5 $142 27. Nf3 g4 (27... Qxe2 $2 28. Nd4 $19) (27... Qxa3 28. Qc6 $17)) 27. Qxa7 {[%emt 0:02:02]} Qxe2 {[%emt 0:01:36]} 28. Qe3 {[%emt 0:03:38]} Qxe3 {[%emt 0:02:32]} 29. fxe3 {[%emt 0:00:07]} Ne5 $36 {[%emt 0:01:10][%mdl 2048] White is under strong pressure.} 30. Rxf7 {[%emt 0:03:29]} Rxf7 {[%emt 0:00:01]} (30... Kxf7 31. Rxe7+ Kxe7 32. Ng2) 31. Rc8+ {[%emt 0:00:37]} Rf8 $1 {[%emt 0:00:43] Black is more active.} 32. Rc5 {[%emt 0:00:58]} (32. Rxf8+ {was the only chance.} Kxf8 33. h3) 32... Ng4 {[%emt 0:01:22][%cal Og7g5]} 33. Rc3 $2 {[%emt 0:01:41]} (33. h3 Nxe3 34. Rc1) 33... Nf2 {[%emt 0:00:39][%cal Rf2h3]} 34. h3 {[%emt 0:01:11]} Nxh3+ {[%emt 0:00:43]} 35. Kh2 {[%emt 0:00:07]} Ng5 {[%emt 0:00:11] ( -> ...Rf2+)} 36. g4 {[%emt 0:00:35]} Rf2+ {[%emt 0:01:50]} 37. Kg3 {[%emt 0:00:14]} Ra2 {[%emt 0:01:23][%cal Og8f7]} 38. b4 {[%emt 0:00:48]} Bb1 {[%emt 0:01:36]} 39. Kf4 {[%emt 0:02:16]} Nf7 {[%emt 0:00:24]} 40. Nf5 {[%emt 0:00:50]} g6 {[%emt 0:01:38]} ({Black should play} 40... g5+ $19 41. Kf3 Ne5+ 42. Kg3 Bxf5 43. gxf5 Kg7) 41. Rc8+ $17 {[%emt 0:30:57]} Kh7 {[%emt 0:20:08]} 42. Rc7 {[%emt 0:00:04]} gxf5 {[%emt 0:02:33]} 43. Rxf7+ {[%emt 0:00:12][%mdl 4096] Endgame KRB-KR} Kg6 {[%emt 0:00:06]} 44. Ra7 {[%emt 0:00:07] [#]} fxg4 {[%emt 0:00:38]} 45. Kxg4 {[%emt 0:00:30]} Bf5+ {[%emt 0:01:46]} 46. Kf4 {[%emt 0:02:18] Hoping for Ra6+.} Rf2+ {[%emt 0:01:33]} 47. Kg3 {[%emt 0:00:29]} Rf1 {[%emt 0:04:59]} 48. b5 {[%emt 0:04:53] [#]} (48. Ra8 $17) 48... h5 $1 $19 {[%emt 0:02:31]} 49. a4 $2 {[%emt 0:03:52]} (49. Rc7) 49... Rb1 $2 {[%emt 0:01:01]} (49... Kg5 $19 {is more deadly.} 50. Rg7+ Kf6) 50. Ra8 $2 {[%emt 0:05:35]} (50. e4 $17 Bxe4 51. Kf4) 50... Rb4 {[%emt 0:01:33] and ...h4+ would now be decisive} 51. Rg8+ {[%emt 0:01:14]} Kf6 {[%emt 0:01:15]} 52. Rh8 {[%emt 0:00:44]} Kg5 {[%emt 0:01:28]} 53. Rg8+ {[%emt 0:00:35]} Kh6 $2 {[%emt 0:04:10]} (53... Bg6 54. Rg7 h4+ (54... Rxa4 $2 55. b6 $19) 55. Kf3 Rxa4) 54. Rh8+ {[%emt 0:02:32]} Kg6 {[%emt 0:04:35]} 55. Rg8+ {[%emt 0:00:07]} Kf7 {[%emt 0:02:28]} 56. Rg5 {[%emt 0:00:56]} h4+ {[%emt 0:00:36]} 57. Kf3 $2 {[%emt 0:00:59]} (57. Kh2 $19 Kf6 58. Rg2) 57... Kf6 {[%emt 0:00:12]} 58. Rg8 {[%emt 0:00:14]} Rxa4 {[%emt 0:00:26]} (58... Be4+ $142 59. Kf2 Rb2+ (59... Rxa4 $2 60. Rg4 $19) 60. Kg1 h3 61. Rh8 Rg2+ 62. Kf1 h2 63. Ke1 Rb2 64. Kd1 h1=Q+ (64... h1=R+ $2 65. Rxh1 Bxh1 66. Kc1 $19) 65. Rxh1 Bxh1 66. Kc1 Ra2 67. Kb1 Rxa4 68. Kb2 Rb4+ 69. Kc3 Rxb5 70. Kc4 Re5 71. Kd4 Re4+ 72. Kd3 Ra4 73. Kc2 Rc4+ 74. Kd3 Re4) 59. Rh8 {[%emt 0:00:42]} Rb4 {[%emt 0:01:29]} (59... Kg7 $142 60. Rd8 Bg4+ 61. Kf2 Ra2+ 62. Ke1 h3 63. Rd4 Bf3 (63... Rg2 $2 64. Kf1 $19) 64. b6 h2 65. Rh4 h1=Q+ (65... h1=R+ $2 66. Rxh1 Bxh1 67. Kd1 $19) 66. Rxh1 Bxh1 67. Kd1 Bf3+ 68. Kc1 Be4 69. Kd1 Kf6 70. Kc1 Kf5 71. Kd1 Kg4 72. Kc1 Kf3 73. b7 Bxb7 74. Kb1 Bd5 75. e4 Kxe4 (75... Bxe4+ 76. Kxa2 $11) 76. Kc1 Kd3 77. Kb1 Kc3 78. Kc1 Ra1#) 60. b6 {[%emt 0:01:14]} h3 {[%emt 0:00:59]} (60... Kg7 $142 61. Rd8 Bg4+ (61... Rxb6 $2 62. e4 $19) 62. Kg2 Rb2+ (62... Rxb6 $2 63. Rd4 $19) 63. Kf1 h3 (63... Rxb6 $2 64. Rd4 $19) 64. Rd4 Bf3 65. Ke1 h2 (65... Rxb6 $2 66. Rh4 $19) 66. Rh4 h1=Q+ (66... h1=N $2 67. Rd4 $19) 67. Rxh1 Bxh1 68. Kd1 Be4 (68... Rxb6 $2 69. Kc2 $19) 69. Ke1 Bf3 (69... Rxb6 70. Ke2 $19) 70. e4 Bxe4 (70... Rxb6 $2 71. Kd2 $19) 71. b7 Rxb7 72. Ke2 Rb3 73. Kf2 Kg6 74. Ke2 Kf5 75. Kf2 Kf4 76. Ke2 Rb2+ 77. Kf1 Kf3 78. Ke1 Ke3 79. Kf1 Rb1#) 61. Kg3 {[%emt 0:00:23]} Ke5 {[%emt 0:01:07]} (61... Rxb6 62. Rh6+ Bg6 63. Rxh3 $17) 62. Re8+ {[%emt 0:00:33]} Be6 {[%emt 0:00:33]} 63. Rb8 {[%emt 0:00:25]} Rg4+ {[%emt 0:01:40]} 64. Kf3 {[%emt 0:01:25]} Rh4 {[%emt 0:04:57] Weighted Error Value: White=1.03/Black=0.57  Loses game:     	White=2     	---        Missed win:     	---       	Black=1      Mistake:       	White=7     	Black=3      Inaccurate:     	White=5     	Black=1      OK:         	White=11    	Black=18     Best:        	White=5     	Black=8      Strong:       	---       	Black=2} 0-1

[Event "4NCL Div 2 2024-25"]
[Site "England"]
[Date "2025.01.25"]
[Round "3.22"]
[White "Noyce, Robert C"]
[Black "Burnett, Jim"]
[Result "1/2-1/2"]
[Annotator "TA"]
[ECO "C01"]
[WhiteElo "2067"]
[BlackElo "2060"]
[PlyCount "58"]
[EventDate "2024.11.23"]
[EventType "team-tourn"]
[EventCountry "ENG"]
[SourceTitle "playchess.com"]
[Source "ChessBase"]
[SourceQuality "1"]
[TimeControl "40/6000+30:3000+30"]

{[%evp 14,58,0,0,-6,0,0,-22,29,-7,4,-10,-10,-3,-11,-11,0,-7,3,2,6,9,1,0,17,-18,-26,-13,-14,-17,-10,-18,-4,-4,-5,-5,0,-11,-4,-20,-3,-4,-2,-8,-4,-10,-5]} 1. c4 {[%emt 0:10:03]} e6 {[%emt 0:10:04]} 2. e4 {[%emt 0:00:07]} d5 {[%emt 0:00:24]} 3. exd5 {[%emt 0:00:13]} exd5 {[%emt 0:00:04]} 4. cxd5 {[%emt 0:00:12]} Nf6 {[%emt 0:00:07][%cal Bg8f6,Bf6d5,Bd5b6][%mdl 32]} 5. Nc3 {[%emt 0:00:40]} Nxd5 {[%emt 0:00:45]} 6. d4 {[%emt 0:01:32]} Be7 {[%emt 0:01:27]} 7. Bc4 {[%emt 0:01:39]} Nb6 {[%emt 0:02:01]} 8. Bb3 {[%emt 0:00:31]} O-O {[%emt 0:00:45] C01: French: Exchange Variation.} 9. Be3 {[%emt 0:03:10]} Nc6 {[%emt 0:03:45][%cal Bb8c6,Bc6a5,Ba5c4][%mdl 32]} 10. Nge2 {[%emt 0:04:22]} Bf5 {[%emt 0:02:17]} ({Black should play} 10... Na5) 11. O-O {[%emt 0:04:02]} Na5 {[%emt 0:05:42]} 12. Bc2 {[%emt 0:03:43]} Bxc2 {[%emt 0:06:16]} 13. Qxc2 {[%emt 0:01:34]} Nac4 {[%emt 0:00:33]} 14. Bf4 {[%emt 0:03:10]} c6 {[%emt 0:00:21]} 15. b3 {[%emt 0:01:54]} Nd6 {[%emt 0:03:10]} 16. Rad1 {[%emt 0:02:04]} Rc8 {[%emt 0:02:21]} 17. Qd3 $146 {[%emt 0:04:51]} (17. Be5 Qd7 18. Ng3 Rfe8 19. Rfe1 Bf8 20. Qd2 Nf5 21. Qg5 Nxg3 22. Qxg3 Nd5 23. Ne4 {0-1 Feldmann,H (2135)-Barthel,A (2230) Ruhrgebiet VL2 9697 1996}) 17... Ne8 {[%emt 0:05:16]} 18. d5 {[%emt 0:20:17]} cxd5 {[%emt 0:00:59]} 19. Nxd5 {[%emt 0:00:55]} Nxd5 {[%emt 0:00:12]} 20. Qxd5 {[%emt 0:00:06]} Qxd5 {[%emt 0:00:25] The position is equal.} 21. Rxd5 {[%emt 0:00:02]} Nf6 {[%emt 0:00:10] Inhibits Rd7.} 22. Rd2 {[%emt 0:05:54] Not much happening anymore} Bb4 {[%emt 0:05:31]} 23. Rd4 {[%emt 0:02:38]} Bc5 {[%emt 0:03:25]} 24. Rd3 {[%emt 0:07:07]} Rfe8 {[%emt 0:01:54]} 25. Nc3 {[%emt 0:06:58]} a6 {[%emt 0:01:59]} 26. a4 {[%emt 0:06:25]} Rcd8 {[%emt 0:07:27]} 27. Rxd8 {[%emt 0:03:56]} Rxd8 {[%emt 0:00:06]} 28. Rd1 {[%emt 0:01:06] Prevents Rd3} Rxd1+ {[%emt 0:02:24]} 29. Nxd1 {[%emt 0:00:02]} Kf8 {[%emt 0:00:39] Not much happened in this game.   Weighted Error Value: White=0.07 (flawless) /Black=0.09 (flawless)   Mistake:       	---       	Black=1      Inaccurate:     	White=2     	---        OK:         	White=8     	Black=8} 1/2-1/2

[Event "4NCL Div 2 2024-25"]
[Site "England"]
[Date "2025.01.25"]
[Round "3.23"]
[White "Wills, Tom"]
[Black "Tart, Peter K"]
[Result "1-0"]
[Annotator "TA"]
[ECO "C42"]
[WhiteElo "1976"]
[BlackElo "1903"]
[PlyCount "71"]
[EventDate "2024.11.23"]
[EventType "team-tourn"]
[EventCountry "ENG"]
[SourceTitle "playchess.com"]
[Source "ChessBase"]
[SourceQuality "1"]
[TimeControl "40/6000+30:3000+30"]

{[%evp 12,71,48,44,45,47,63,69,52,37,50,49,56,45,45,51,81,61,93,43,45,42,49,43,58,47,46,47,53,48,47,35,50,37,41,34,104,107,153,147,235,231,236,248,332,312,316,316,310,311,314,312,307,293,331,0,595,602,809,795,820,776]} 1. e4 {[%emt 0:10:03]} e5 {[%emt 0:10:06]} 2. Nf3 {[%emt 0:00:05]} Nf6 {[%emt 0:00:11]} 3. Nxe5 {[%emt 0:00:22]} Nxe4 {[%emt 0:00:49]} 4. Qe2 {[%emt 0:00:47]} Qe7 {[%emt 0:00:04]} 5. Qxe4 {[%emt 0:00:47]} d6 {[%emt 0:00:04]} 6. d4 {[%emt 0:00:54]} dxe5 {[%emt 0:00:04]} 7. dxe5 {[%emt 0:00:06]} Nc6 {[%emt 0:00:04] C42: Petroff Defence: 3 Nxe5 and unusual White 3rd moves.} 8. Nc3 {[%emt 0:00:42]} Qxe5 {[%emt 0:00:23]} 9. Qxe5+ {[%emt 0:00:13]} Nxe5 {[%emt 0:00:04] White is slightly better.} 10. Bf4 {[%emt 0:00:16]} Bd6 {[%emt 0:00:05][%cal Oe5f3]} 11. Bg3 {[%emt 0:00:15]} f6 {[%emt 0:00:04]} 12. O-O-O {[%emt 0:07:22]} Be6 {[%emt 0:12:36]} 13. Nb5 {[%emt 0:11:14]} Rd8 {[%emt 0:00:45]} 14. Nxd6+ {[%emt 0:11:28]} Rxd6 {[%emt 0:07:33]} 15. Rxd6 $146 {[%emt 0:03:58]} (15. Re1 $16 {Threatens to win with f4.} g5 16. Bxe5 fxe5 17. Rxe5) (15. Bb5+ Bd7 16. Bxe5 Rxd1+ 17. Rxd1 Bxb5 18. Bxc7 Ke7 19. b3 Rc8 20. Bf4 Bc6 21. Be3 {½-½ Tishin,P (2443)-Afromeev,V (2556) RUS-Cup sf 03 2005 (3)}) 15... cxd6 $14 {[%emt 0:00:03]} 16. Be2 {[%emt 0:03:03]} Bd5 {[%emt 0:09:59]} 17. f3 {[%emt 0:03:30]} Ke7 {[%emt 0:07:11]} 18. Re1 {[%emt 0:07:57] [#]} Kd7 {[%emt 0:10:00]} 19. Rd1 {[%emt 0:06:53]} Bc6 {[%emt 0:00:19]} 20. Bf2 {[%emt 0:03:26]} Kc7 {[%emt 0:02:19]} 21. b3 {[%emt 0:02:38]} (21. Bxa7 b6 $15) 21... h5 {[%emt 0:05:33]} 22. Be1 {[%emt 0:07:42]} h4 {[%emt 0:06:43]} 23. h3 {[%emt 0:02:23]} Ng6 {[%emt 0:05:24]} (23... Re8 $14) 24. Rd4 $16 {[%emt 0:03:08]} Re8 {[%emt 0:08:12]} ({Black should try} 24... Bd7 25. c4 (25. Bb4 d5 $16) 25... Bf5) 25. Kd2 {[%emt 0:03:32][%cal Od4g4]} Rh8 {[%emt 0:01:20]} (25... Re7 $16 26. Bxh4 a6) 26. Rg4 $18 {[%emt 0:01:26]} Rh6 {[%emt 0:03:26]} 27. Bd3 {[%emt 0:03:42]} Be8 {[%emt 0:00:54]} 28. Kd1 {[%emt 0:01:27] [#]} Kc6 {[%emt 0:02:51]} 29. Bd2 {[%emt 0:02:15]} Ne5 {[%emt 0:01:06]} 30. Rxg7 {[%emt 0:01:50]} Rh8 {[%emt 0:00:40]} 31. Be2 {[%emt 0:01:13]} a6 {[%emt 0:01:26]} 32. Be1 {[%emt 0:03:32]} Ng6 {[%emt 0:00:55]} 33. Bd2 $2 {[%emt 0:01:03] Dodges Nf4} ({White should play} 33. Ba5 $18) 33... Rh5 $2 {[%emt 0:02:04][%mdl 8192]} (33... Ne5 $1 $11 {and Black is okay.} 34. c4 Bh5) 34. f4 {[%emt 0:00:40] White is clearly winning.} Rh8 {[%emt 0:00:22]} 35. Bf3+ {[%emt 0:00:16]} d5 {[%emt 0:00:05]} 36. c4 {[%emt 0:00:12] Weighted Error Value: White=0.19 (very precise) /Black=0.53  Loses game:     	---       	Black=1      Missed win:     	White=1     	---        Mistake:       	White=1     	Black=3      Inaccurate:     	---       	Black=4      OK:         	White=14    	Black=7      Best:        	White=2     	Black=1} 1-0

[Event "4NCL Div 2 2024-25"]
[Site "England"]
[Date "2025.01.25"]
[Round "3.24"]
[White "Shek, Daniel"]
[Black "Jaufarally, Nadia"]
[Result "0-1"]
[Annotator "TA"]
[ECO "A28"]
[WhiteElo "1873"]
[BlackElo "1929"]
[PlyCount "157"]
[EventDate "2024.11.23"]
[EventType "team-tourn"]
[EventCountry "ENG"]
[SourceTitle "playchess.com"]
[Source "ChessBase"]
[SourceQuality "1"]
[TimeControl "40/6000+30:3000+30"]

{[%evp 12,157,67,74,65,64,83,73,77,62,73,73,152,133,136,117,133,144,158,156,158,150,220,122,125,124,192,197,208,208,212,197,209,167,177,122,108,109,106,106,113,108,116,118,114,117,125,116,117,104,97,75,91,75,101,78,84,84,78,41,39,20,52,38,140,93,122,117,161,137,131,96,85,0,35,0,13,-2,-6,-143,-2,-2,-8,0,0,0,0,0,0,0,0,-8,0,-8,-8,-8,-8,-8,-8,-8,-8,-8,0,-8,0,0,0,-8,0,0,0,-8,-8,-8,0,0,0,0,0,-29969,-29970,-29970,-29969,-29971,-29973,-29973,-29974,-29974,-29975,-29976,-29977,-29976,-29977,-29978,-29978,-29980,-29981,-29981,-29982,-29982,-29983,-29984,-29985,-29986,-29987,-29987,-29988,-29988]} 1. c4 {[%emt 0:10:04]} e5 {[%emt 0:09:53]} 2. Nc3 {[%emt 0:00:53]} Nf6 {[%emt 0:00:10]} 3. Nf3 {[%emt 0:00:11]} Nc6 {[%emt 0:01:02]} 4. e4 {[%emt 0:00:21]} Bc5 {[%emt 0:05:20]} 5. Nxe5 {[%emt 0:01:26]} Nxe5 {[%emt 0:13:11]} 6. d4 {[%emt 0:00:53]} Bxd4 {[%emt 0:07:59]} 7. Qxd4 {[%emt 0:02:42]} Nc6 {[%emt 0:04:06]} 8. Qd1 {[%emt 0:02:30]} h6 {[%emt 0:01:50]} 9. Bf4 {[%emt 0:02:31]} O-O {[%emt 0:04:26] White is better.} 10. Be2 {[%emt 0:02:41]} Re8 {[%emt 0:02:22]} 11. f3 {[%emt 0:17:14]} b6 {[%emt 0:18:13]} (11... d6 $142) 12. Qd2 {[%emt 0:04:52]} d6 {[%emt 0:01:05]} 13. O-O-O {[%emt 0:04:05]} Ne5 {[%emt 0:13:25]} 14. g4 {[%emt 0:07:26]} Ba6 {[%emt 0:05:08]} 15. b3 {[%emt 0:07:06]} Nh7 {[%emt 0:00:48]} 16. h4 {[%emt 0:05:24]} Ng6 {[%emt 0:01:42] [#]} (16... Bb7 $16 17. Be3 Qd7) 17. Bg3 {[%emt 0:05:14]} (17. Be3 $1 $18) 17... Bb7 $16 {[%emt 0:01:50]} 18. Nd5 {[%emt 0:11:30]} Bxd5 {[%emt 0:00:46]} (18... a6 $16 {was necessary.} 19. Kb1 a5) 19. cxd5 $18 {[%emt 0:02:44]} (19. exd5 $6 Qf6 20. Kb1 Ne5 $16) 19... a6 {[%emt 0:03:52] Black is weak on the light squares} 20. Kb1 {[%emt 0:01:40]} Qe7 {[%emt 0:01:38]} 21. Qd4 {[%emt 0:01:06]} Qf6 {[%emt 0:00:49]} 22. Qxf6 {[%emt 0:01:51]} Nxf6 {[%emt 0:00:19]} 23. Bd3 {[%emt 0:04:08]} (23. Rd2 $18) 23... Ne5 $16 {[%emt 0:01:27]} 24. Bxe5 {[%emt 0:00:19]} dxe5 {[%emt 0:04:26]} 25. Rc1 {[%emt 0:00:57]} Re7 {[%emt 0:01:26]} 26. g5 {[%emt 0:03:40]} Ne8 {[%emt 0:04:13]} 27. gxh6 {[%emt 0:02:18]} gxh6 {[%emt 0:00:05]} 28. Rc6 {[%emt 0:00:08]} Nd6 {[%emt 0:02:59]} 29. Rhc1 {[%emt 0:00:29]} Ra7 {[%emt 0:00:00]} 30. Kc2 {[%emt 0:01:10]} f6 {[%emt 0:00:00]} 31. Kd2 {[%emt 0:00:21]} Rg7 {[%emt 0:00:00]} 32. Ke3 {[%emt 0:00:42]} Kf8 {[%emt 0:00:00]} 33. Be2 {[%emt 0:02:53]} f5 {[%emt 0:00:46]} 34. exf5 {[%emt 0:00:26]} Nxf5+ {[%emt 0:00:02]} 35. Kd3 {[%emt 0:00:36]} Nd6 {[%emt 0:01:15]} 36. Bf1 {[%emt 0:02:35]} Rf7 {[%emt 0:00:26]} 37. Ke3 {[%emt 0:01:19]} Kg7 {[%emt 0:00:29]} ({Black should play} 37... Nf5+ $14 38. Ke4 Nd6+ 39. Kxe5 Rxf3) 38. Bh3 {[%emt 0:00:19]} (38. Bd3 $142) 38... Kf8 {[%emt 0:01:06]} 39. Rg1 {[%emt 0:01:02]} Rg7 {[%emt 0:00:34] Against Rg6} 40. Rxg7 {[%emt 0:01:56]} Kxg7 $18 {[%emt 0:00:02][%mdl 4096] Endgame KRB-KRN} 41. f4 {[%emt 0:50:35]} Kf6 {[%emt 0:21:49]} 42. f5 {[%emt 0:00:00]} (42. h5 $16) 42... Rb7 {[%emt 0:08:49]} 43. Kf3 {[%emt 0:00:00]} h5 {[%emt 0:07:45]} 44. a4 {[%emt 0:00:00]} a5 {[%emt 0:01:29]} 45. Rc1 {[%emt 0:00:00] [#]} (45. Bf1 $1 $11 {was the only way to keep the balance.}) 45... Nxf5 {[%emt 0:07:45]} (45... b5 $1 $17 46. axb5 (46. Rg1 bxa4 47. Rg6+ Kf7 $11) 46... Nxb5 (46... Rxb5 $2 47. Rc3 $19) 47. Rc6+ Nd6) 46. Bxf5 $11 {[%emt 0:00:00]} Kxf5 $17 {[%emt 0:00:03] KR-KR. Black is a pawn up.} 47. Rg1 {[%emt 0:00:00]} b5 {[%emt 0:01:08]} 48. Rg5+ {[%emt 0:00:00]} Kf6 {[%emt 0:00:07]} 49. Rxh5 {[%emt 0:00:00]} bxa4 {[%emt 0:00:06]} 50. bxa4 {[%emt 0:00:00]} Rb3+ {[%emt 0:00:32]} 51. Ke2 {[%emt 0:00:00]} Rb4 {[%emt 0:00:20]} 52. Rh7 {[%emt 0:00:00]} Rxa4 {[%emt 0:00:34]} 53. h5 {[%emt 0:00:00]} Rc4 {[%emt 0:02:36]} 54. Kd3 {[%emt 0:00:00]} Rd4+ {[%emt 0:00:14]} 55. Kc3 {[%emt 0:00:00]} Rxd5 {[%emt 0:00:45] Strongly threatening ...e4.} 56. Rxc7 {[%emt 0:01:01]} Kg5 {[%emt 0:02:54]} 57. Kc4 {[%emt 0:01:03]} Rd1 {[%emt 0:00:21] ( -> ...Rc1+)} ({Much less strong is} 57... Rd4+ 58. Kc5 $17) 58. Re7 {[%emt 0:00:27]} Kf6 {[%emt 0:00:58]} 59. Ra7 {[%emt 0:00:50]} a4 {[%emt 0:01:10]} 60. h6 {[%emt 0:00:36]} Rd4+ {[%emt 0:00:32]} 61. Kc3 {[%emt 0:00:06]} Rh4 {[%emt 0:00:06]} (61... Kg6 62. h7 Rh4 63. Rxa4 Rxh7 64. Kd2 Rh3) 62. h7 {[%emt 0:00:39]} (62. Kd3 Rh3+ 63. Kd2 Rxh6 64. Rxa4 Rh1 65. Ra6+) 62... a3 {[%emt 0:01:08]} 63. Kb3 {[%emt 0:03:10]} Rh3+ {[%emt 0:00:08]} 64. Ka2 {[%emt 0:00:37]} e4 {[%emt 0:00:19]} 65. Rxa3 $2 {[%emt 0:00:32][%mdl 8192]} (65. Ra4 $11) 65... Rxh7 {[%emt 0:00:12] Black mates.} 66. Kb2 {[%emt 0:00:34]} Rc7 {[%emt 0:00:50]} 67. Ra8 {[%emt 0:01:19]} Ke5 {[%emt 0:00:15]} 68. Re8+ {[%emt 0:00:18]} Kd4 {[%emt 0:00:07]} 69. Rd8+ {[%emt 0:00:05]} Ke3 {[%emt 0:00:06]} 70. Kb3 {[%emt 0:00:11]} Ke2 {[%emt 0:00:24]} 71. Kb2 {[%emt 0:00:14]} e3 {[%emt 0:00:07]} 72. Kb3 {[%emt 0:00:05]} Ke1 {[%emt 0:00:06]} 73. Kb2 {[%emt 0:00:09]} Rf7 {[%emt 0:01:53]} 74. Kc3 {[%emt 0:00:57]} e2 {[%emt 0:00:25]} 75. Rh8 {[%emt 0:01:27]} Kf2 {[%emt 0:02:47]} 76. Rh2+ {[%emt 0:00:12]} Ke3 {[%emt 0:00:00]} 77. Rh1 {[%emt 0:00:40]} Rf1 {[%emt 0:00:00]} 78. Rh3+ {[%emt 0:00:12]} Kf4 {[%emt 0:00:00]} 79. Rh4+ {[%emt 0:00:31] Both players deserved the win here.   Weighted Error Value: White=0.17 (very precise) /Black=0.17 (very precise)   Loses game:     	White=1     	---        Mistake:       	White=5     	Black=5      Inaccurate:     	White=2     	Black=4      OK:         	White=20    	Black=18     Best:        	White=2     	Black=4} 0-1